[Event "44th Chess Olympiad Women 2022"]
[Site "Chennai"]
[Date "2022.08.07"]
[Round "9.35"]
[White "Chaves, Jussara"]
[Black "Badenhorst, Chloe"]
[Result "0-1"]
[WhiteElo "1933"]
[BlackElo "1703"]
[Annotator "NA"]
[PlyCount "96"]
[EventDate "2022.??.??"]
[TimeControl "60"]

1. f4 {[%emt 0:00:12]} Nf6 {[%emt 0:00:08]} 2. b3 {[%emt 0:00:23]} g6 {[%emt 0:
00:00]} 3. Bb2 {[%emt 0:00:07]} Bg7 {[%emt 0:00:13]} 4. e4 {[%emt 0:00:34]} d6
{[%emt 0:18:41]} 5. Nf3 {[%emt 0:01:06]} O-O {[%emt 0:00:21]} 6. d3 {[%emt 0:
00:00]} c5 {[%emt 0:01:02]} 7. Be2 {[%emt 0:02:37]} Nc6 {[%emt 0:00:22]} 8. O-O
{[%emt 0:02:59]} e5 {[%emt 0:03:52]} 9. Nfd2 {[%emt 0:13:41]} exf4 {[%emt 0:00:
00]} 10. Rxf4 {[%emt 0:01:12]} Nh5 {[%emt 0:06:39]} 11. Bxg7 {[%emt 0:00:34]}
Nxf4 {[%emt 0:00:35]} 12. Bxf8 {[%emt 0:00:13]} Kxf8 {[%emt 0:00:58]} 13. Bf1 {
[%emt 0:06:24]} Qg5 {[%emt 0:06:07]} 14. Kh1 {[%emt 0:13:05]} Bg4 {[%emt 0:00:
00]} 15. Nf3 {[%emt 0:01:46]} Qf6 {[%emt 0:04:17]} 16. Nbd2 {[%emt 0:02:45]}
Nd4 {[%emt 0:02:28]} 17. Rb1 {[%emt 0:04:42]} Nxf3 {[%emt 0:05:51]} 18. Nxf3 {
[%emt 0:01:30]} Re8 {[%emt 0:14:06]} 19. b4 {[%emt 0:06:14]} b6 {[%emt 0:02:14]
} 20. bxc5 {[%emt 0:02:17]} dxc5 {[%emt 0:00:21]} 21. Rb3 {[%emt 0:17:03]} Nh3
{[%emt 0:05:04]} 22. Qe2 {[%emt 0:01:08]} Ng5 {[%emt 0:03:06]} 23. Nxg5 {
[%emt 0:03:23]} Qxg5 {[%emt 0:00:34]} 24. Qe1 {[%emt 0:00:26]} f5 {[%emt 0:00:
00]} 25. h3 {[%emt 0:01:28]} Bh5 {[%emt 0:00:56]} 26. Rb1 {[%emt 0:05:08]} Kg8
{[%emt 0:02:23]} 27. a4 {[%emt 0:01:58]} fxe4 {[%emt 0:03:01]} 28. dxe4 {
[%emt 0:00:15]} Qe5 {[%emt 0:00:41]} 29. Bc4+ {[%emt 0:01:11]} Kg7 {[%emt 0:00:
00]} 30. Bd5 {[%emt 0:00:54]} g5 {[%emt 0:00:47]} 31. Qe3 {[%emt 0:00:26]} Qxd5
{[%emt 0:00:50]} 32. exd5 {[%emt 0:01:25]} Rxe3 {[%emt 0:00:01]} 33. a5 {
[%emt 0:00:25]} Bf7 {[%emt 0:01:41]} 34. d6 {[%emt 0:00:19]} Re2 {[%emt 0:00:
00]} 35. Rd1 {[%emt 0:02:06]} Re8 {[%emt 0:01:01]} 36. axb6 {[%emt 0:00:17]}
axb6 {[%emt 0:00:02]} 37. Rb1 {[%emt 0:01:27]} Rd8 {[%emt 0:00:20]} 38. Rxb6 {
[%emt 0:00:08]} Kf6 {[%emt 0:00:26]} 39. Kh2 {[%emt 0:02:08]} Ke6 {[%emt 0:00:
00]} 40. Rc6 {[%emt 0:00:26]} Kd5 {[%emt 0:00:55]} 41. Rc7 {[%emt 0:30:24]} Bg6
{[%emt 0:03:55]} 42. c3 {[%emt 0:00:00]} Rxd6 {[%emt 0:00:31]} 43. Re7 {
[%emt 0:00:00]} Kc4 {[%emt 0:01:13]} 44. Re3 {[%emt 0:00:00]} Bd3 {[%emt 0:00:
00]} 45. Kg3 {[%emt 0:00:00]} Kxc3 {[%emt 0:01:21]} 46. Kg4 {[%emt 0:00:00]}
Rd5 {[%emt 0:00:44]} 47. h4 {[%emt 0:00:00]} gxh4 {[%emt 0:00:35]} 48. Kxh4 {
[%emt 0:00:00]} c4 {[%emt 0:00:22]} 0-1

[Event "44th Chess Olympiad Women 2022"]
[Site "Chennai"]
[Date "2022.08.07"]
[Round "9.35"]
[White "Selkirk, Rebecca"]
[Black "Silva, Mariana Sofia T."]
[Result "0-1"]
[WhiteElo "1745"]
[BlackElo "1912"]
[Annotator "NA"]
[PlyCount "78"]
[EventDate "2022.??.??"]
[TimeControl "60"]

1. e4 {[%emt 0:00:03]} c6 {[%emt 0:00:06]} 2. d4 {[%emt 0:00:09]} d5 {[%emt 0:
00:00]} 3. exd5 {[%emt 0:00:05]} cxd5 {[%emt 0:00:08]} 4. c4 {[%emt 0:00:06]}
Nf6 {[%emt 0:00:06]} 5. Nc3 {[%emt 0:00:12]} Nc6 {[%emt 0:00:06]} 6. Bg5 {
[%emt 0:00:08]} dxc4 {[%emt 0:00:13]} 7. d5 {[%emt 0:00:16]} Ne5 {[%emt 0:00:
00]} 8. Qd4 {[%emt 0:00:10]} h6 {[%emt 0:00:09]} 9. Qxe5 {[%emt 0:15:36]} hxg5
{[%emt 0:00:07]} 10. Bxc4 {[%emt 0:00:14]} g4 {[%emt 0:00:16]} 11. Nge2 {
[%emt 0:02:50]} Qd6 {[%emt 0:17:04]} 12. Qxd6 {[%emt 0:09:29]} exd6 {[%emt 0:
00:00]} 13. Nd4 {[%emt 0:00:41]} Bd7 {[%emt 0:11:36]} 14. Bb5 {[%emt 0:02:07]}
Rc8 {[%emt 0:06:11]} 15. O-O {[%emt 0:04:24]} Bxb5 {[%emt 0:01:25]} 16. Ndxb5 {
[%emt 0:00:53]} a6 {[%emt 0:00:46]} 17. Nd4 {[%emt 0:00:22]} g6 {[%emt 0:03:10]
} 18. f3 {[%emt 0:02:03]} g3 {[%emt 0:04:41]} 19. hxg3 {[%emt 0:02:54]} Bg7 {
[%emt 0:01:15]} 20. Nde2 {[%emt 0:01:06]} Kd7 {[%emt 0:09:40]} 21. g4 {[%emt 0:
00:00]} Rce8 {[%emt 0:02:15]} 22. g5 {[%emt 0:13:12]} Nxd5 {[%emt 0:05:16]} 23.
Ne4 {[%emt 0:03:19]} f5 {[%emt 0:09:25]} 24. gxf6 {[%emt 0:01:48]} Nxf6 {
[%emt 0:00:11]} 25. N4c3 {[%emt 0:01:05]} b5 {[%emt 0:06:40]} 26. a3 {[%emt 0:
00:00]} Nd5 {[%emt 0:00:36]} 27. Rfd1 {[%emt 0:03:41]} Nb6 {[%emt 0:09:40]} 28.
Rd3 {[%emt 0:02:17]} Nc4 {[%emt 0:02:46]} 29. Rad1 {[%emt 0:10:42]} Re3 {
[%emt 0:01:23]} 30. Ne4 {[%emt 0:02:47]} Rxe2 {[%emt 0:02:18]} 31. b3 {[%emt 0:
00:00]} Ne3 {[%emt 0:02:00]} 32. Rxd6+ {[%emt 0:01:07]} Kc8 {[%emt 0:01:32]}
33. Rc1+ {[%emt 0:01:11]} Kb8 {[%emt 0:00:35]} 34. Rb6+ {[%emt 0:03:19]} Ka7 {
[%emt 0:00:05]} 35. Rxg6 {[%emt 0:00:11]} Be5 {[%emt 0:00:58]} 36. f4 {[%emt 0:
00:00]} Bxf4 {[%emt 0:00:16]} 37. Nf2 {[%emt 0:01:40]} Bh2+ {[%emt 0:00:07]}
38. Kh1 {[%emt 0:00:02]} Rxf2 {[%emt 0:01:32]} 39. Rg7+ {[%emt 0:00:27]} Kb8 {
[%emt 0:00:39]} 0-1

[Event "44th Chess Olympiad Women 2022"]
[Site "Chennai"]
[Date "2022.08.07"]
[Round "9.35"]
[White "Silva, Ana Ines Teixeira D"]
[Black "Bouah, Denise"]
[Result "1-0"]
[WhiteElo "1775"]
[BlackElo "1736"]
[Annotator "NA"]
[PlyCount "99"]
[EventDate "2022.??.??"]
[TimeControl "60"]

1. e4 {[%emt 0:00:03]} c5 {[%emt 0:00:08]} 2. Nc3 {[%emt 0:00:07]} d6 {[%emt 0:
00:00]} 3. g3 {[%emt 0:00:07]} Nc6 {[%emt 0:00:08]} 4. Bg2 {[%emt 0:00:15]} g6
{[%emt 0:00:05]} 5. d3 {[%emt 0:00:20]} Bg7 {[%emt 0:00:04]} 6. f4 {[%emt 0:00:
00]} e6 {[%emt 0:00:18]} 7. Be3 {[%emt 0:00:50]} Rb8 {[%emt 0:00:16]} 8. Nf3 {
[%emt 0:00:53]} Nd4 {[%emt 0:01:36]} 9. O-O {[%emt 0:05:58]} b5 {[%emt 0:02:10]
} 10. e5 {[%emt 0:05:27]} dxe5 {[%emt 0:24:16]} 11. fxe5 {[%emt 0:03:47]} f5 {
[%emt 0:06:01]} 12. exf6 {[%emt 0:11:53]} Nxf6 {[%emt 0:00:54]} 13. Bf4 {
[%emt 0:03:28]} Rb6 {[%emt 0:04:41]} 14. a4 {[%emt 0:10:33]} a6 {[%emt 0:18:53]
} 15. a5 {[%emt 0:05:07]} Rb7 {[%emt 0:01:49]} 16. Ng5 {[%emt 0:09:07]} Nd5 {
[%emt 0:13:42]} 17. Nce4 {[%emt 0:15:52]} Nxf4 {[%emt 0:05:31]} 18. Rxf4 {
[%emt 0:00:06]} Rc7 {[%emt 0:00:32]} 19. g4 {[%emt 0:05:11]} h6 {[%emt 0:02:22]
} 20. Nh3 {[%emt 0:00:15]} Be5 {[%emt 0:04:42]} 21. Rf1 {[%emt 0:01:07]} Qe7 {
[%emt 0:01:59]} 22. c3 {[%emt 0:00:22]} Nc6 {[%emt 0:00:19]} 23. Qe2 {[%emt 0:
00:00]} Bg7 {[%emt 0:00:40]} 24. Nf4 {[%emt 0:01:44]} Ne5 {[%emt 0:03:38]} 25.
d4 {[%emt 0:03:46]} cxd4 {[%emt 0:00:04]} 26. cxd4 {[%emt 0:00:05]} Nc4 {
[%emt 0:00:23]} 27. Nxg6 {[%emt 0:04:35]} Bxd4+ {[%emt 0:00:11]} 28. Kh1 {
[%emt 0:00:13]} Qg7 {[%emt 0:00:46]} 29. Nxh8 {[%emt 0:00:49]} Qxh8 {[%emt 0:
00:00]} 30. Rac1 {[%emt 0:05:26]} Bxb2 {[%emt 0:00:33]} 31. Rc2 {[%emt 0:00:34]
} Be5 {[%emt 0:00:50]} 32. Nd2 {[%emt 0:01:24]} Nxa5 {[%emt 0:01:33]} 33. Rxc7
{[%emt 0:00:29]} Bxc7 {[%emt 0:00:08]} 34. Qf3 {[%emt 0:01:17]} Qg7 {[%emt 0:
00:00]} 35. Ne4 {[%emt 0:00:53]} Nc4 {[%emt 0:01:03]} 36. Nf6+ {[%emt 0:00:28]}
Ke7 {[%emt 0:01:03]} 37. Qc6 {[%emt 0:00:18]} Be5 {[%emt 0:01:27]} 38. Qe8+ {
[%emt 0:01:16]} Kd6 {[%emt 0:00:08]} 39. Ne4+ {[%emt 0:00:24]} Kc7 {[%emt 0:00:
00]} 40. Rf7+ {[%emt 0:00:05]} Qxf7 {[%emt 0:02:38]} 41. Qxf7+ {[%emt 0:30:07]}
Kb6 {[%emt 0:30:13]} 42. Qf8 {[%emt 0:01:35]} Bb7 {[%emt 0:00:51]} 43. Qd8+ {
[%emt 0:01:28]} Bc7 {[%emt 0:00:47]} 44. Qd4+ {[%emt 0:00:10]} Ka5 {[%emt 0:00:
00]} 45. Nd2 {[%emt 0:00:23]} Bxg2+ {[%emt 0:01:28]} 46. Kxg2 {[%emt 0:00:09]}
Nxd2 {[%emt 0:00:27]} 47. Qxd2+ {[%emt 0:00:07]} b4 {[%emt 0:00:20]} 48. Qxh6 {
[%emt 0:01:12]} Ka4 {[%emt 0:00:00]} 49. Qxe6 {[%emt 0:00:00]} Kb5 {[%emt 0:00:
00]} 50. g5 {[%emt 0:00:00]} 1-0

[Event "44th Chess Olympiad Women 2022"]
[Site "Chennai"]
[Date "2022.08.07"]
[Round "9.35"]
[White "Van Zyl, Charlize"]
[Black "Pipiras, Filipa Fortuna"]
[Result "0-1"]
[WhiteElo "1704"]
[BlackElo "2139"]
[Annotator "NA RC"]
[PlyCount "56"]
[EventDate "2022.??.??"]
[TimeControl "60"]

1. d4 {[%emt 0:00:04]} d5 {[%emt 0:00:45]} 2. Bf4 {[%emt 0:00:10]} c5 {[%emt 0:
00:00]} 3. e3 {[%emt 0:00:14]} Nc6 {[%emt 0:00:33]} 4. c3 {[%emt 0:00:27]} Qb6
{[%emt 0:01:27]} 5. Qb3 {[%emt 0:01:21]} c4 {[%emt 0:00:51]} 6. Qc2 {[%emt 0:
00:00]} e5 {[%emt 0:02:26]} 7. dxe5 {[%emt 0:02:18]} Bf5 {[%emt 0:00:29]} 8.
Qc1 {[%emt 0:00:41]} g5 {[%emt 0:01:41]} 9. Bxg5 {[%emt 0:02:24]} Nxe5 {
[%emt 0:00:47]} 10. Nd2 {[%emt 0:01:27]} Bd3 {[%emt 0:06:42]} 11. Ne2 {[%emt 0:
00:00]} Ne7 {[%emt 0:01:25]} 12. Nf3 {[%emt 0:06:20]} f6 {[%emt 0:27:24]} 13.
Nxe5 {[%emt 0:07:49]} fxe5 {[%emt 0:01:03]} 14. Ng3 {[%emt 0:00:45]} Bxf1 {
[%emt 0:06:23]} 15. Rxf1 {[%emt 0:06:58]} Ng6 {[%emt 0:05:55]} 16. e4 {[%emt 0:
00:00]} h6 {[%emt 0:06:19]} 17. Bd2 {[%emt 0:01:29]} Nh4 {[%emt 0:03:18]} 18.
Qc2 {[%emt 0:07:01]} Nxg2+ {[%emt 0:00:34]} 19. Kd1 {[%emt 0:00:06]} O-O-O {
[%emt 0:02:02]} 20. exd5 {[%emt 0:04:38]} Rxd5 {[%emt 0:02:09]} 21. Qf5+ {
[%emt 0:00:17]} Kb8 {[%emt 0:00:54]} 22. Kc2 {[%emt 0:00:31]} Ba3 {[%emt 0:00:
00]} 23. Rab1 {[%emt 0:05:35]} Qd8 {[%emt 0:02:30]} 24. Ne4 {[%emt 0:03:39]}
Be7 {[%emt 0:01:46]} 25. Rfd1 {[%emt 0:04:23]} Qa5 {[%emt 0:01:33]} 26. Qf7 {
[%emt 0:03:50]} Bg5 {[%emt 0:02:02]} 27. Bxg5 {[%emt 0:03:52]} Qa4+ {[%emt 0:
00:00]} 28. b3 {[%emt 0:01:58]} Qxa2+ {[%emt 0:04:13]} 0-1

[Event "44th Chess Olympiad Women 2022"]
[Site "Chennai"]
[Date "2022.08.07"]
[Round "9.36"]
[White "Abdi, Zineb Dina"]
[Black "Abaeva, Aiana"]
[Result "1-0"]
[WhiteElo "1899"]
[BlackElo "1595"]
[Annotator "NA"]
[PlyCount "61"]
[EventDate "2022.??.??"]
[TimeControl "60"]

1. e4 {[%emt 0:00:24]} c5 {[%emt 0:00:10]} 2. Nf3 {[%emt 0:00:06]} d6 {[%emt 0:
00:00]} 3. d4 {[%emt 0:00:14]} cxd4 {[%emt 0:00:09]} 4. Nxd4 {[%emt 0:00:06]}
Nf6 {[%emt 0:00:09]} 5. Bd3 {[%emt 0:00:42]} Nbd7 {[%emt 0:06:10]} 6. O-O {
[%emt 0:03:54]} e6 {[%emt 0:01:24]} 7. c4 {[%emt 0:03:12]} Be7 {[%emt 0:04:13]}
8. Nc3 {[%emt 0:01:31]} O-O {[%emt 0:02:10]} 9. Be3 {[%emt 0:03:45]} a6 {
[%emt 0:07:18]} 10. Rc1 {[%emt 0:03:57]} Qc7 {[%emt 0:05:34]} 11. f3 {[%emt 0:
00:00]} b6 {[%emt 0:01:54]} 12. b3 {[%emt 0:04:19]} Bb7 {[%emt 0:01:17]} 13.
Qd2 {[%emt 0:00:46]} Rac8 {[%emt 0:02:05]} 14. Qf2 {[%emt 0:02:05]} Qb8 {
[%emt 0:09:57]} 15. Rfd1 {[%emt 0:01:18]} Bd8 {[%emt 0:08:09]} 16. Nde2 {
[%emt 0:08:48]} Ne5 {[%emt 0:11:12]} 17. Bb1 {[%emt 0:04:08]} Ba8 {[%emt 0:00:
00]} 18. h3 {[%emt 0:04:32]} Bc7 {[%emt 0:03:37]} 19. a4 {[%emt 0:04:27]} h6 {
[%emt 0:04:34]} 20. Rd2 {[%emt 0:04:54]} Rfd8 {[%emt 0:00:36]} 21. Rcd1 {
[%emt 0:00:39]} Nc6 {[%emt 0:02:07]} 22. Qh4 {[%emt 0:03:00]} Nd7 {[%emt 0:00:
00]} 23. f4 {[%emt 0:23:50]} Nf8 {[%emt 0:05:19]} 24. f5 {[%emt 0:00:43]} Rd7 {
[%emt 0:00:43]} 25. Bxh6 {[%emt 0:08:15]} gxh6 {[%emt 0:00:33]} 26. Qxh6 {
[%emt 0:02:17]} f6 {[%emt 0:00:10]} 27. fxe6 {[%emt 0:01:40]} Rg7 {[%emt 0:00:
00]} 28. Nf4 {[%emt 0:02:21]} Bd8 {[%emt 0:00:28]} 29. Ncd5 {[%emt 0:01:06]}
Rh7 {[%emt 0:05:05]} 30. Nxf6+ {[%emt 0:00:38]} Bxf6 {[%emt 0:00:06]} 31. Qxf6
{[%emt 0:00:08]} 1-0

[Event "44th Chess Olympiad Women 2022"]
[Site "Chennai"]
[Date "2022.08.07"]
[Round "9.36"]
[White "Hamza, Amira"]
[Black "Sezdbekova Aizhan"]
[Result "1-0"]
[WhiteElo "1848"]
[BlackElo "1615"]
[Annotator "NA RC"]
[PlyCount "47"]
[EventDate "2022.??.??"]
[TimeControl "60"]

1. d4 {[%emt 0:00:05]} Nf6 {[%emt 0:00:17]} 2. Nf3 {[%emt 0:00:13]} e6 {
[%emt 0:01:28]} 3. g3 {[%emt 0:00:17]} b6 {[%emt 0:01:14]} 4. Bg2 {[%emt 0:00:
00]} Bb7 {[%emt 0:00:20]} 5. O-O {[%emt 0:01:22]} Be7 {[%emt 0:01:41]} 6. c4 {
[%emt 0:00:00]} d5 {[%emt 0:03:18]} 7. Nc3 {[%emt 0:00:39]} O-O {[%emt 0:01:10]
} 8. Ne5 {[%emt 0:04:14]} c5 {[%emt 0:08:08]} 9. cxd5 {[%emt 0:07:17]} exd5 {
[%emt 0:05:32]} 10. Bf4 {[%emt 0:30:15]} Nbd7 {[%emt 0:23:24]} 11. e3 {[%emt 0:
00:00]} Ne4 {[%emt 0:07:47]} 12. g4 {[%emt 0:09:45]} Nxe5 {[%emt 0:13:47]} 13.
dxe5 {[%emt 0:02:54]} Nxc3 {[%emt 0:03:12]} 14. bxc3 {[%emt 0:00:06]} Qd7 {
[%emt 0:03:06]} 15. Qf3 {[%emt 0:04:51]} c4 {[%emt 0:04:00]} 16. Rfd1 {[%emt 0:
00:00]} Qb5 {[%emt 0:03:56]} 17. Qe2 {[%emt 0:09:31]} Qa5 {[%emt 0:02:50]} 18.
e4 {[%emt 0:01:46]} dxe4 {[%emt 0:02:54]} 19. Rd7 {[%emt 0:01:03]} Qxc3 {
[%emt 0:06:07]} 20. Rc1 {[%emt 0:00:13]} Qa3 {[%emt 0:01:56]} 21. Rxb7 {
[%emt 0:00:22]} c3 {[%emt 0:00:22]} 22. Bxe4 {[%emt 0:00:47]} Rac8 {[%emt 0:00:
00]} 23. Bf5 {[%emt 0:01:04]} Rc6 {[%emt 0:01:30]} 24. Qe4 {[%emt 0:02:21]} 1-0

[Event "44th Chess Olympiad Women 2022"]
[Site "Chennai"]
[Date "2022.08.07"]
[Round "9.36"]
[White "Sovetbekova, Nurai"]
[Black "Nassr, Rania"]
[Result "1-0"]
[WhiteElo "1693"]
[BlackElo "1737"]
[Annotator "NA"]
[PlyCount "65"]
[EventDate "2022.??.??"]
[TimeControl "60"]

1. d4 {[%emt 0:00:03]} Nf6 {[%emt 0:00:19]} 2. c4 {[%emt 0:00:04]} e6 {[%emt 0:
00:00]} 3. g3 {[%emt 0:00:07]} d5 {[%emt 0:00:25]} 4. Bg2 {[%emt 0:00:06]} dxc4
{[%emt 0:00:49]} 5. Nf3 {[%emt 0:01:09]} c5 {[%emt 0:00:42]} 6. O-O {[%emt 0:
00:00]} Nc6 {[%emt 0:01:11]} 7. Qa4 {[%emt 0:06:14]} Qa5 {[%emt 0:01:31]} 8.
Qxc4 {[%emt 0:03:39]} b5 {[%emt 0:11:23]} 9. Qc2 {[%emt 0:12:03]} Qb6 {[%emt 0:
00:00]} 10. a3 {[%emt 0:20:29]} c4 {[%emt 0:08:18]} 11. Nc3 {[%emt 0:06:33]}
Bb7 {[%emt 0:06:57]} 12. Bg5 {[%emt 0:06:38]} Be7 {[%emt 0:02:52]} 13. Bxf6 {
[%emt 0:05:07]} Bxf6 {[%emt 0:00:03]} 14. d5 {[%emt 0:00:10]} Ne7 {[%emt 0:00:
00]} 15. dxe6 {[%emt 0:02:55]} fxe6 {[%emt 0:00:36]} 16. Ne4 {[%emt 0:02:51]}
O-O {[%emt 0:03:50]} 17. Nxf6+ {[%emt 0:05:51]} Rxf6 {[%emt 0:03:04]} 18. a4 {
[%emt 0:02:22]} Nd5 {[%emt 0:12:58]} 19. axb5 {[%emt 0:02:48]} Qxb5 {[%emt 0:
00:00]} 20. Nd2 {[%emt 0:05:08]} c3 {[%emt 0:09:09]} 21. bxc3 {[%emt 0:01:56]}
Qxe2 {[%emt 0:01:44]} 22. Rae1 {[%emt 0:02:48]} Qh5 {[%emt 0:01:02]} 23. Ne4 {
[%emt 0:04:51]} Rh6 {[%emt 0:01:09]} 24. h4 {[%emt 0:00:08]} Ba6 {[%emt 0:00:
00]} 25. c4 {[%emt 0:00:57]} Rc8 {[%emt 0:01:58]} 26. Nd6 {[%emt 0:01:24]} Rc6
{[%emt 0:01:09]} 27. Nf5 {[%emt 0:01:50]} Rf6 {[%emt 0:03:02]} 28. Bxd5 {
[%emt 0:00:11]} Rb6 {[%emt 0:01:32]} 29. Re5 {[%emt 0:02:52]} Rxf5 {[%emt 0:00:
00]} 30. Bxe6+ {[%emt 0:01:10]} Rxe6 {[%emt 0:00:26]} 31. Rxe6 {[%emt 0:00:08]}
Bb7 {[%emt 0:00:57]} 32. Qb3 {[%emt 0:01:11]} Bf3 {[%emt 0:00:40]} 33. Qe3 {
[%emt 0:00:32]} 1-0

[Event "44th Chess Olympiad Women 2022"]
[Site "Chennai"]
[Date "2022.08.07"]
[Round "9.36"]
[White "Zairbek kyzy, Begimai"]
[Black "Nassr, Lina"]
[Result "1-0"]
[WhiteElo "1949"]
[BlackElo "2011"]
[Annotator "NA"]
[PlyCount "75"]
[EventDate "2022.??.??"]
[TimeControl "60"]

1. e4 {[%emt 0:00:02]} c5 {[%emt 0:00:16]} 2. Nf3 {[%emt 0:00:05]} Nc6 {
[%emt 0:00:44]} 3. c3 {[%emt 0:00:21]} Nf6 {[%emt 0:00:34]} 4. e5 {[%emt 0:00:
00]} Nd5 {[%emt 0:00:12]} 5. Bc4 {[%emt 0:00:05]} Nb6 {[%emt 0:01:18]} 6. Bb3 {
[%emt 0:00:23]} c4 {[%emt 0:01:47]} 7. Bc2 {[%emt 0:00:05]} d6 {[%emt 0:00:38]}
8. exd6 {[%emt 0:01:24]} Qxd6 {[%emt 0:00:06]} 9. O-O {[%emt 0:00:15]} Bg4 {
[%emt 0:01:29]} 10. h3 {[%emt 0:01:13]} Bh5 {[%emt 0:02:17]} 11. Qe2 {[%emt 0:
00:00]} O-O-O {[%emt 0:14:30]} 12. b3 {[%emt 0:07:51]} Nd5 {[%emt 0:09:48]} 13.
bxc4 {[%emt 0:09:22]} Nf4 {[%emt 0:02:43]} 14. Qe3 {[%emt 0:00:48]} g5 {
[%emt 0:07:14]} 15. d4 {[%emt 0:15:40]} Bh6 {[%emt 0:02:43]} 16. Bf5+ {[%emt 0:
00:00]} e6 {[%emt 0:02:34]} 17. Ba3 {[%emt 0:06:20]} Qc7 {[%emt 0:07:39]} 18.
Bg4 {[%emt 0:00:36]} Bxg4 {[%emt 0:12:51]} 19. hxg4 {[%emt 0:00:05]} Na5 {
[%emt 0:02:32]} 20. Nbd2 {[%emt 0:08:17]} Nxc4 {[%emt 0:02:04]} 21. Nxc4 {
[%emt 0:01:25]} Qxc4 {[%emt 0:00:02]} 22. Ne5 {[%emt 0:02:15]} Qc7 {[%emt 0:00:
00]} 23. g3 {[%emt 0:14:54]} Nd5 {[%emt 0:01:17]} 24. Qf3 {[%emt 0:00:39]} Kb8
{[%emt 0:15:26]} 25. c4 {[%emt 0:04:00]} f6 {[%emt 0:00:59]} 26. cxd5 {[%emt 0:
00:00]} fxe5 {[%emt 0:00:11]} 27. Rac1 {[%emt 0:05:02]} Qd7 {[%emt 0:03:14]}
28. d6 {[%emt 0:00:41]} exd4 {[%emt 0:04:30]} 29. Rc7 {[%emt 0:01:53]} Qb5 {
[%emt 0:00:17]} 30. Qf6 {[%emt 0:01:50]} d3 {[%emt 0:00:41]} 31. Rd1 {[%emt 0:
00:00]} d2 {[%emt 0:03:04]} 32. Rxd2 {[%emt 0:00:21]} Qb1+ {[%emt 0:00:06]} 33.
Kh2 {[%emt 0:00:57]} Qg6 {[%emt 0:01:13]} 34. Qe7 {[%emt 0:00:18]} Qe4 {
[%emt 0:00:17]} 35. Rb2 {[%emt 0:00:21]} b6 {[%emt 0:00:30]} 36. Rxa7 {[%emt 0:
00:00]} Qc6 {[%emt 0:00:37]} 37. Rc2 {[%emt 0:01:02]} Bf8 {[%emt 0:00:32]} 38.
Qxd8+ {[%emt 0:00:00]} 1-0

[Event "44th Chess Olympiad Women 2022"]
[Site "Chennai"]
[Date "2022.08.07"]
[Round "9.37"]
[White "Ahmad Murad, Fatema Alzahraa."]
[Black "Diaz Charpentier, Kristel Meliss"]
[Result "1/2-1/2"]
[WhiteElo "1791"]
[BlackElo "1989"]
[Annotator "NA RC"]
[PlyCount "131"]
[EventDate "2022.??.??"]
[TimeControl "60"]

1. d4 {[%emt 0:00:04]} Nf6 {[%emt 0:00:26]} 2. c4 {[%emt 0:00:19]} e6 {[%emt 0:
00:00]} 3. a3 {[%emt 0:00:09]} c5 {[%emt 0:00:34]} 4. d5 {[%emt 0:00:42]} exd5
{[%emt 0:00:45]} 5. cxd5 {[%emt 0:00:07]} d6 {[%emt 0:00:02]} 6. Nc3 {[%emt 0:
00:00]} g6 {[%emt 0:03:23]} 7. e4 {[%emt 0:00:58]} Bg7 {[%emt 0:00:13]} 8. Bd3
{[%emt 0:01:12]} O-O {[%emt 0:00:08]} 9. Nf3 {[%emt 0:03:27]} a6 {[%emt 0:00:
00]} 10. a4 {[%emt 0:01:38]} Qc7 {[%emt 0:02:29]} 11. Nd2 {[%emt 0:04:43]} Nbd7
{[%emt 0:09:00]} 12. Nc4 {[%emt 0:03:19]} Rb8 {[%emt 0:04:06]} 13. a5 {[%emt 0:
00:00]} b5 {[%emt 0:01:26]} 14. axb6 {[%emt 0:00:07]} Nxb6 {[%emt 0:00:05]} 15.
O-O {[%emt 0:03:52]} Nfd7 {[%emt 0:13:08]} 16. Qc2 {[%emt 0:14:03]} Nxc4 {
[%emt 0:06:33]} 17. Bxc4 {[%emt 0:00:10]} Ne5 {[%emt 0:00:01]} 18. Be2 {
[%emt 0:04:47]} Qb6 {[%emt 0:06:24]} 19. Ra3 {[%emt 0:12:15]} Re8 {[%emt 0:00:
00]} 20. Qa4 {[%emt 0:04:15]} Re7 {[%emt 0:02:20]} 21. f3 {[%emt 0:11:11]} Nd7
{[%emt 0:05:45]} 22. Qa5 {[%emt 0:07:17]} Qxa5 {[%emt 0:02:59]} 23. Rxa5 {
[%emt 0:00:06]} Nb6 {[%emt 0:00:03]} 24. Bf4 {[%emt 0:00:42]} Rd7 {[%emt 0:00:
00]} 25. Rfa1 {[%emt 0:00:23]} Ra8 {[%emt 0:00:17]} 26. R5a2 {[%emt 0:01:10]}
c4 {[%emt 0:03:31]} 27. Bd1 {[%emt 0:05:04]} Bd4+ {[%emt 0:00:55]} 28. Kf1 {
[%emt 0:00:15]} Kg7 {[%emt 0:00:17]} 29. Na4 {[%emt 0:01:46]} Rb8 {[%emt 0:00:
00]} 30. Rc1 {[%emt 0:01:49]} a5 {[%emt 0:01:58]} 31. Ke1 {[%emt 0:00:46]} Ba6
{[%emt 0:00:10]} 32. Nxb6 {[%emt 0:02:33]} Rxb6 {[%emt 0:00:02]} 33. Rxa5 {
[%emt 0:00:24]} Bxb2 {[%emt 0:00:06]} 34. Be3 {[%emt 0:01:40]} Bxc1 {[%emt 0:
00:00]} 35. Bxb6 {[%emt 0:00:05]} Bc8 {[%emt 0:00:22]} 36. Bd4+ {[%emt 0:00:17]
} f6 {[%emt 0:00:44]} 37. Ra4 {[%emt 0:00:16]} Rc7 {[%emt 0:00:29]} 38. Bc3 {
[%emt 0:00:21]} Bd7 {[%emt 0:00:11]} 39. Ra6 {[%emt 0:00:23]} Bf4 {[%emt 0:00:
00]} 40. g3 {[%emt 0:01:50]} Be5 {[%emt 0:00:41]} 41. Bxe5 {[%emt 0:32:37]}
dxe5 {[%emt 0:30:02]} 42. Kd2 {[%emt 0:00:34]} Kf7 {[%emt 0:03:43]} 43. Ba4 {
[%emt 0:00:57]} Bxa4 {[%emt 0:05:54]} 44. Rxa4 {[%emt 0:00:07]} c3+ {[%emt 0:
00:00]} 45. Kc2 {[%emt 0:00:08]} f5 {[%emt 0:00:28]} 46. Ra3 {[%emt 0:00:43]}
fxe4 {[%emt 0:03:29]} 47. fxe4 {[%emt 0:00:07]} Rc4 {[%emt 0:00:48]} 48. Ra7+ {
[%emt 0:01:53]} Ke8 {[%emt 0:00:16]} 49. Rxh7 {[%emt 0:00:00]} Rxe4 {[%emt 0:
00:00]} 50. Kxc3 {[%emt 0:00:00]} Rd4 {[%emt 0:00:00]} 51. Rg7 {[%emt 0:00:00]}
Rxd5 {[%emt 0:00:00]} 52. Rxg6 {[%emt 0:00:00]} Kf7 {[%emt 0:00:00]} 53. Rg4 {
[%emt 0:00:00]} Rd6 {[%emt 0:00:00]} 54. Re4 {[%emt 0:00:00]} Kf6 {[%emt 0:00:
00]} 55. Re2 {[%emt 0:00:00]} Kf5 {[%emt 0:00:00]} 56. Rd2 {[%emt 0:00:00]} Rh6
{[%emt 0:00:00]} 57. Kd3 {[%emt 0:00:00]} e4+ {[%emt 0:00:00]} 58. Ke3 {
[%emt 0:00:00]} Ke5 {[%emt 0:00:00]} 59. Rb2 {[%emt 0:00:00]} Kf5 {[%emt 0:00:
00]} 60. Rf2+ {[%emt 0:00:00]} Ke5 {[%emt 0:00:00]} 61. g4 {[%emt 0:00:00]}
Rh3+ {[%emt 0:00:00]} 62. Ke2 {[%emt 0:00:00]} e3 {[%emt 0:00:00]} 63. Rf5+ {
[%emt 0:00:00]} Ke6 {[%emt 0:00:00]} 64. Rh5 {[%emt 0:00:00]} Rxh5 {[%emt 0:00:
00]} 65. gxh5 {[%emt 0:00:00]} Kf6 {[%emt 0:00:00]} 66. Kxe3 {[%emt 0:00:00]}
1/2-1/2